Workbook

Sheet Info
B2: This document applies to these design file versions.
B4: Schematic Version | C4: 1.2.4
B5: PCB Version | C5: 1.2.4

Sheet BOM
A1: Subsystem | B1: Manufacturer | C1: Part Number | D1: Qty | E1: T | F1: Designator | G1: Change | H1: Description | I1: Package | J1: T-storage | K1: Est. Cost | L1: Qty | M1: $ Ext. | N1: Source | O1: Length | P1: Width | Q1: Height | R1: Depth | S1: Units | T1: Length | U1: Width | V1: Height | W1: Depth | X1: Units
A2: +12v Clean Supply | B2: Cornell Dubilier | C2: AFK475M80D16T-F | D2: =1+LEN(F2)-LEN(SUBSTITUTE(F2,",","")) -> 1 | E2: =IF(F2<>"",LEFT(F2,1),"Z") -> C | F2: C204 | H2: 4.7uF, 80v, 20%, Al | I2: CAN SMD-6 | J2: -55, +105 | K2: 0.325 | L2: 100 | M2: =D2*K2 -> 0.325 | N2: Digi-Key | O2: =VLOOKUP($I2,$A$81:$F$110,2,FALSE) -> 6.3 | P2: =VLOOKUP($I2,$A$81:$F$110,3, FALSE) -> 6.3 | Q2: =VLOOKUP($I2,$A$81:$F$110,4,FALSE) -> 5.8 | R2: =VLOOKUP($I2,$A$81:$F$110,5,TRUE) -> 0 | S2: mm | T2: =IF(AND($S2<>"",O2<>""),O2*VLOOKUP($S2,$A$75:$B$77,2),"") -> 0.2480314961 | U2: =IF(AND($S2<>"",P2<>""),P2*VLOOKUP($S2,$A$75:$B$77,2),"") -> 0.2480314961 | V2: =IF(AND($S2<>"",Q2<>""),Q2*VLOOKUP($S2,$A$75:$B$77,2),"") -> 0.2283464567 | W2: =IF(AND($S2<>"",R2<>""),R2*VLOOKUP($S2,$A$75:$B$77,2),"") -> 0 | X2: =IF(S2<>"",IF(S2=$A$77,$A$76,$A$77),"") -> inch
A3: +12v Clean Supply | B3: TDK Corp | C3: C1005X7S2A103K | D3: 2 | E3: C | F3: C208, C219 | G3: v1.3.0 | H3: 0.01uF, 100v, 10%, Cer | I3: 0402T | J3: -55, +125 | K3: 0.02924 | L3: 250 | M3: 0.05848 | N3: Digi-Key | O3: 1 | P3: 0.5 | Q3: 0.55 | R3: 0 | S3: mm | T3: 0.03937007874 | U3: 0.01968503937 | V3: 0.02165354331 | W3: 0 | X3: inch
A4: +12v Clean Supply | B4: NXP | C4: BAS16,215 | D4: 1 | E4: D | F4: D201 | H4: 215mA, 100v, 250mW | I4: SOT-23 | J4: -65, +150 | K4: 0.04752 | L4: 250 | M4: 0.04752 | N4: Digi-Key | O4: 3.04 | P4: 2.64 | Q4: 1.22 | R4: 0 | S4: mm | T4: 0.1196850394 | U4: 0.1039370079 | V4: 0.04803149606 | W4: 0 | X4: inch
A5: +12v Clean Supply | B5: TI | C5: TPS7A1601DGNR | D5: 1 | E5: I | F5: IC201 | H5: 12v Low, Power Regulator | I5: MSOP-8 | J5: -40, +125 | K5: 2.674 | L5: 250 | M5: 2.674 | N5: Digi-Key | O5: 5 | P5: 3 | Q5: 1.1 | R5: 0 | S5: mm | T5: 0.1968503937 | U5: 0.1181102362 | V5: 0.04330708661 | W5: 0 | X5: inch
A6: +12v Clean Supply | B6: Panasonic | C6: ERJ-2RKF1433X | D6: 1 | E6: R | F6: R210 | H6: 143K, 0.1W, 1% | I6: 0402 | K6: 0.01364 | L6: 250 | M6: 0.01364 | N6: Digi-Key | O6: 1 | P6: 0.5 | Q6: 0.4 | R6: 0 | S6: mm | T6: 0.03937007874 | U6: 0.01968503937 | V6: 0.0157480315 | W6: 0 | X6: inch
A7: +12v Clean Supply | B7: Panasonic | C7: ERJ-2RKF1582X | D7: 1 | E7: R | F7: R211 | H7: 15.8K, 0.1W, 1% | I7: 0402 | K7: 0.01364 | L7: 250 | M7: 0.01364 | N7: Digi-Key | O7: 1 | P7: 0.5 | Q7: 0.4 | R7: 0 | S7: mm | T7: 0.03937007874 | U7: 0.01968503937 | V7: 0.0157480315 | W7: 0 | X7: inch
A8: +12v Shutdown | B8: Panasonic | C8: ERJ-2RKF1003X | D8: 1 | E8: R | F8: R112 | H8: 100K, 0.1W, 1% | I8: 0402 | J8: -55, +125 | K8: 0.01364 | L8: 250 | M8: 0.01364 | N8: Digi-Key | O8: 1 | P8: 0.5 | Q8: 0.4 | R8: 0 | S8: mm | T8: 0.03937007874 | U8: 0.01968503937 | V8: 0.0157480315 | W8: 0 | X8: inch
A9: +12v Supply | B9: TDK Corp | C9: C1608X7R1E684K | D9: 1 | E9: C | F9: C209 | H9: 0.68uF, 25v, 10%, Cer | I9: 0603 | J9: -55, +125 | K9: 0.075 | L9: 250 | M9: 0.075 | N9: Digi-Key | O9: 1.6 | P9: 0.8 | Q9: 0.8 | R9: 0 | S9: mm | T9: 0.06299212598 | U9: 0.03149606299 | V9: 0.03149606299 | W9: 0 | X9: inch
A10: +12v Supply | B10: TDK Corp | C10: C5750X7S2A106M | D10: 1 | E10: C | F10: C210 | H10: 10uF, 100v, 20%, Cer | I10: 2220 | J10: -55, +125 | K10: 1.41 | L10: 100 | M10: 1.41 | N10: Digi-Key | O10: 5.7 | P10: 5 | Q10: 2.5 | R10: 0 | S10: mm | T10: 0.2244094488 | U10: 0.1968503937 | V10: 0.09842519685 | W10: 0 | X10: inch
A11: +12v Supply | B11: Taiyo Yuden | C11: UMK105B7102KV-F | E11: C | F11: C211,C215,C217 | G11: OMIT | H11: 1000pF, 50v, 10% (OMIT) | I11: 0402 | J11: -55, +125 | K11: 0.0078 | L11: 250 | M11: 0 | N11: Digi-Key | O11: 1 | P11: 0.5 | Q11: 0.4 | R11: 0 | S11: mm | T11: 0.03937007874 | U11: 0.01968503937 | V11: 0.0157480315 | W11: 0 | X11: inch
A12: +12v Supply | B12: Taiyo Yuden | C12: UMK105B7102KV-F | D12: =1+LEN(F12)-LEN(SUBSTITUTE(F12,",","")) -> 1 | E12: C | F12: C212 | H12: 1000pF, 50v, 10% | I12: 0402 | J12: -55, +125 | K12: 0.0078 | L12: 250 | M12: 0.0078 | N12: Digi-Key | O12: 1 | P12: 0.5 | Q12: 0.4 | R12: 0 | S12: mm | T12: 0.03937007874 | U12: 0.01968503937 | V12: 0.0157480315 | W12: 0 | X12: inch
A13: +12v Supply | B13: TDK Corp | C13: C1005X7S1A474K | D13: 1 | E13: C | F13: C213 | H13: 0.47uF, 10v, 10%, Cer | I13: 0402 | J13: -55, +125 | K13: 0.036 | L13: 250 | M13: 0.036 | N13: Digi-Key | O13: 1 | P13: 0.5 | Q13: 0.4 | R13: 0 | S13: mm | T13: 0.03937007874 | U13: 0.01968503937 | V13: 0.0157480315 | W13: 0 | X13: inch
A14: +12v Supply | B14: Johanson Dielectrics | C14: 160S41X226KV4E | D14: 3 | E14: C | F14: C201,C214,C218 | H14: 22uF, 16v, 10%, X5R Cer | I14: 1210 | J14: -55, +85 | K14: 0.7168 | L14: 250 | M14: 2.1504 | N14: Digi-Key | O14: 3.2 | P14: 2.44 | Q14: 2.8 | R14: 0 | S14: mm | T14: 0.125984252 | U14: 0.09606299213 | V14: 0.1102362205 | W14: 0 | X14: inch
A15: +12v Supply | B15: Panasonic | C15: EEE-2AA100UP | D15: 1 | E15: C | F15: C216 | H15: 10uF, 100v, 20%, Alu | I15: CAN SMD-8 | J15: -40, +85 | K15: 0.29108 | L15: 250 | M15: 0.29108 | N15: Digi-Key | O15: 8 | P15: 8 | Q15: 6.2 | R15: 0 | S15: mm | T15: 0.3149606299 | U15: 0.3149606299 | V15: 0.2440944882 | W15: 0 | X15: inch
A16: +12v Supply | B16: Diode Inc | C16: S3KB-13-F | D16: 1 | E16: D | F16: D202 | G16: v1.3.0 | H16: 3A 94V | I16: SMB | J16: -65,_150 | K16: 0.6409 | L16: 250 | M16: 0.6409 | N16: Digi-Key | O16: 7.1 | P16: 6.1 | Q16: 2.41 | R16: 0 | S16: mm | T16: 0.2795275591 | U16: 0.2401574803 | V16: 0.09488188976 | W16: 0 | X16: inch
A17: +12v Supply | B17: Linear Tech | C17: LT3690EUFE#PBF | D17: 1 | E17: I | F17: IC202 | H17: LTC3690 Switching P.S. | I17: 26-WFQFN | J17: -40, +125 | K17: 6.01 | L17: 100 | M17: 6.01 | N17: Digi-Key | O17: 6 | P17: 4 | Q17: 0.74 | R17: 0 | S17: mm | T17: 0.2362204724 | U17: 0.157480315 | V17: 0.02913385827 | W17: 0 | X17: inch
A18: +12v Supply | B18: Panasonic | C18: ERJ-2RKF1001X | D18: 1 | E18: R | F18: R212 | H18: 1K, 0.1W, 1% | I18: 0402 | J18: -55, +125 | K18: 0.01364 | L18: 250 | M18: 0.01364 | N18: Digi-Key | O18: 1 | P18: 0.5 | Q18: 0.4 | R18: 0 | S18: mm | T18: 0.03937007874 | U18: 0.01968503937 | V18: 0.0157480315 | W18: 0 | X18: inch
A19: +12v Supply | B19: Panasonic | C19: ERJ-2RKF1003X | D19: 1 | E19: R | F19: R213 | H19: 100K, 0.1W, 1% | I19: 0402 | J19: -55, +125 | K19: 0.01364 | L19: 250 | M19: 0.01364 | N19: Digi-Key | O19: 1 | P19: 0.5 | Q19: 0.4 | R19: 0 | S19: mm | T19: 0.03937007874 | U19: 0.01968503937 | V19: 0.0157480315 | W19: 0 | X19: inch
A20: +12v Supply | B20: Panasonic | C20: ERJ-2RKF2152X | D20: 1 | E20: R | F20: R214 | H20: 21.5K, 0.1W, 1% | I20: 0402 | K20: 0.01364 | L20: 250 | M20: 0.01364 | N20: Digi-Key | O20: 1 | P20: 0.5 | Q20: 0.4 | R20: 0 | S20: mm | T20: 0.03937007874 | U20: 0.01968503937 | V20: 0.0157480315 | W20: 0 | X20: inch
A21: +12v Supply | B21: Panasonic | C21: ERJ-2RKF5903X | D21: 1 | E21: R | F21: R215 | G21: v1.2.4 | H21: 590K, 0.1W, 1% | I21: 0402 | K21: 0.01364 | L21: 250 | M21: 0.01364 | N21: Digi-Key | O21: 1 | P21: 0.5 | Q21: 0.4 | R21: 0 | S21: mm | T21: 0.03937007874 | U21: 0.01968503937 | V21: 0.0157480315 | W21: 0 | X21: inch
A22: +12v Supply | B22: Panasonic | C22: ERJ-2RKF7322X | D22: 1 | E22: R | F22: R216 | H22: 73.2K, 0.1W, 1% | I22: 0402 | K22: 0.01364 | L22: 250 | M22: 0.01364 | N22: Digi-Key | O22: 1 | P22: 0.5 | Q22: 0.4 | R22: 0 | S22: mm | T22: 0.03937007874 | U22: 0.01968503937 | V22: 0.0157480315 | W22: 0 | X22: inch
A23: +12v Supply | B23: Panasonic | C23: ERJ-2RKF3832X | D23: 2 | E23: R | F23: R113,R217 | G23: v1.3.0 | H23: 38.3K, 0.1W, 1% | I23: 0402 | K23: 0.01364 | L23: 250 | M23: 0.02728 | N23: Digi-Key | O23: 1 | P23: 0.5 | Q23: 0.4 | R23: 0 | S23: mm | T23: 0.03937007874 | U23: 0.01968503937 | V23: 0.0157480315 | W23: 0 | X23: inch
A24: +12v Supply | B24: Taiyo Yuden | C24: NS12575T220MN | D24: 1 | E24: T | F24: T201 | H24: 22uH, 31mOhm, 4.05A (5.56A Sat) | I24: NS12575 | J24: -40, +125 | K24: 1.47 | L24: 100 | M24: 1.47 | N24: Digi-Key | O24: 12.5 | P24: 12.5 | Q24: 7.5 | R24: 0 | S24: mm | T24: 0.4921259843 | U24: 0.4921259843 | V24: 0.2952755906 | W24: 0 | X24: inch
A25: +12v Supply | B25: Panasonic | C25: ERJ-2RKF3240X | D25: 1 | E25: R | F25: R218 | G25: v1.2.4 | H25: 3240R, 0.1W, 1% | I25: 0402 | K25: 0.01364 | L25: 250 | M25: 0.01364 | N25: Digi-Key | O25: 1 | P25: 0.5 | Q25: 0.4 | R25: 0 | S25: mm | T25: 0.03937007874 | U25: 0.01968503937 | V25: 0.0157480315 | W25: 0 | X25: inch
A26: +12v Supply | B26: Panasonic | C26: ERJ-2RKF3240X | D26: 1 | E26: R | F26: R219 | G26: v1.2.4 | H26: 3240R, 0.1W, 1% | I26: 0402 | K26: 0.01364 | L26: 250 | M26: 0.01364 | N26: Digi-Key | O26: 1 | P26: 0.5 | Q26: 0.4 | R26: 0 | S26: mm | T26: 0.03937007874 | U26: 0.01968503937 | V26: 0.0157480315 | W26: 0 | X26: inch
A27: +12v Supply | B27: Infineon | C27: BTS6163D | D27: 1 | E27: I | F27: IC204 | G27: v1.2.4 | H27: High Side Power Switch | I27: TO-252-5 | J27: -40, +150 | K27: 3.2856 | L27: 250 | M27: 3.2856 | N27: Digi-Key | O27: 9.98 | P27: 6.5 | Q27: 2.3 | R27: 0 | S27: mm | T27: 0.3929133858 | U27: 0.2559055118 | V27: 0.0905511811 | W27: 0 | X27: inch
A28: +12v Supply | B28: Panasonic | C28: ERJ-2RKF1582X | D28: 1 | E28: R | F28: R118 | G28: v1.2.4 | H28: 15.8K, 0.1W, 1% | I28: 0402 | K28: 0.01364 | L28: 250 | M28: 0.01364 | N28: Digi-Key | O28: 1 | P28: 0.5 | Q28: 0.4 | R28: 0 | S28: mm | T28: =IF(AND($S28<>"",O28<>""),O28*VLOOKUP($S28,$A$75:$B$77,2),"") -> 0.03937007874 | U28: =IF(AND($S28<>"",P28<>""),P28*VLOOKUP($S28,$A$75:$B$77,2),"") -> 0.01968503937 | V28: =IF(AND($S28<>"",Q28<>""),Q28*VLOOKUP($S28,$A$75:$B$77,2),"") -> 0.0157480315 | W28: =IF(AND($S28<>"",R28<>""),R28*VLOOKUP($S28,$A$75:$B$77,2),"") -> 0 | X28: =IF(S28<>"",IF(S28=$A$77,$A$76,$A$77),"") -> inch
A29: +12v Supply | B29: Fairchild | C29: MMBT3904 | D29: 1 | E29: Q | F29: Q102 | G29: v1.2.4 | H29: NPN, 100 mA, 40v, Beta 100 | I29: SOT-23 | J29: -55, +150 | K29: 0.05732 | L29: 250 | M29: 0.05732 | N29: Digi-Key | O29: 3.04 | P29: 2.64 | Q29: 1.22 | R29: 0 | S29: mm | T29: 0.1196850394 | U29: 0.1039370079 | V29: 0.04803149606 | W29: 0 | X29: inch
A30: +12v Supply | B30: Kemet | C30: C0805V103KCRACTU | D30: 1 | E30: C | F30: C220 | G30: v1.3.0 | H30: 0.02uF, 600v, 10%, CER | I30: 0805 | J30: -55, +125 | K30: 0.07684 | L30: 250 | M30: 0.07684 | N30: Digi-Key | O30: 2 | P30: 1.25 | Q30: 1.45 | R30: 0 | S30: mm | T30: =IF(AND($S30<>"",O30<>""),O30*VLOOKUP($S30,$A$75:$B$77,2),"") -> 0.07874015748 | U30: =IF(AND($S30<>"",P30<>""),P30*VLOOKUP($S30,$A$75:$B$77,2),"") -> 0.04921259843 | V30: =IF(AND($S30<>"",Q30<>""),Q30*VLOOKUP($S30,$A$75:$B$77,2),"") -> 0.05708661417 | W30: =IF(AND($S30<>"",R30<>""),R30*VLOOKUP($S30,$A$75:$B$77,2),"") -> 0 | X30: =IF(S30<>"",IF(S30=$A$77,$A$76,$A$77),"") -> inch
A31: +12v Supply | B31: Panasonic | C31: ERJ-P06J105V | D31: =1+LEN(F31)-LEN(SUBSTITUTE(F31,",","")) -> 1 | E31: =IF(F31<>"",LEFT(F31,1),"Z") -> R | F31: R220 | G31: V1.3.0 | H31: 1M, 0.5W, 5% | I31: 0805 | K31: 0.0494 | L31: 250 | M31: 0.0494 | N31: Digi-Key | O31: 2 | P31: 1.25 | Q31: 1.45 | R31: 0 | S31: mm | T31: 0.07874015748 | U31: 0.04921259843 | V31: 0.05708661417 | W31: 0 | X31: inch
A32: +3.3v Supply | B32: TDK Corp | C32: C2012X5R1E475K | D32: 1 | E32: C | F32: C205 | H32: 4.7uF, 25v, 10%, Cer | I32: 0805 | J32: -55, +85 | K32: 0.09 | L32: 250 | M32: 0.09 | N32: Digi-Key | O32: 2 | P32: 1.25 | Q32: 1.45 | R32: 0 | S32: mm | T32: =IF(AND($S32<>"",O32<>""),O32*VLOOKUP($S32,$A$75:$B$77,2),"") -> 0.07874015748 | U32: =IF(AND($S32<>"",P32<>""),P32*VLOOKUP($S32,$A$75:$B$77,2),"") -> 0.04921259843 | V32: =IF(AND($S32<>"",Q32<>""),Q32*VLOOKUP($S32,$A$75:$B$77,2),"") -> 0.05708661417 | W32: =IF(AND($S32<>"",R32<>""),R32*VLOOKUP($S32,$A$75:$B$77,2),"") -> 0 | X32: =IF(S32<>"",IF(S32=$A$77,$A$76,$A$77),"") -> inch
A33: +3.3v Supply | B33: TDK Corp | C33: C1005X5R1H471K | D33: 1 | E33: C | F33: C206 | H33: 470pF, 50v | I33: 0402 | J33: -55, +85 | K33: 0.009 | L33: 250 | M33: 0.009 | N33: Digi-Key | O33: 1 | P33: 0.5 | Q33: 0.4 | R33: 0 | S33: mm | T33: 0.03937007874 | U33: 0.01968503937 | V33: 0.0157480315 | W33: 0 | X33: inch
A34: +3.3v Supply | B34: TDK Corp | C34: C2012X5R1E475K | D34: 1 | E34: C | F34: C207 | H34: 4.7uF, 25v, 10%, Cer | I34: 0805 | J34: -55, +85 | K34: 0.09 | L34: 250 | M34: 0.09 | N34: Digi-Key | O34: 2 | P34: 1.25 | Q34: 1.45 | R34: 0 | S34: mm | T34: 0.07874015748 | U34: 0.04921259843 | V34: 0.05708661417 | W34: 0 | X34: inch
A35: +3.3v Supply | B35: Micrel | C35: MIC5205-3.3YM5 TR | D35: 1 | E35: I | F35: IC203 | H35: 3.3v Regulator - 16v input | I35: SOT-23-5 | J35: -40, +125 | K35: 0.572 | L35: 250 | M35: 0.572 | N35: Digi-Key | O35: 3.04 | P35: 3 | Q35: 1.3 | R35: 0 | S35: mm | T35: 0.1196850394 | U35: 0.1181102362 | V35: 0.05118110236 | W35: 0 | X35: inch
A36: Development | B36: Panasonic | C36: LNJ308G8LRA | D36: 2 | E36: =IF(F36<>"",LEFT(F36,1),"Z") -> L | F36: LED101,LED102 | H36: Green LEDs (-30 to +85) (DEVELOPMENT) | I36: 0603 | J36: -30, +85 | K36: 0.139 | L36: 250 | M36: =D36*K36 -> 0.278 | N36: Digi-Key | O36: =VLOOKUP($I36,$A$81:$F$110,2,FALSE) -> 1.6 | P36: =VLOOKUP($I36,$A$81:$F$110,3, FALSE) -> 0.8 | Q36: =VLOOKUP($I36,$A$81:$F$110,4,FALSE) -> 0.8 | R36: =VLOOKUP($I36,$A$81:$F$110,5,TRUE) -> 0 | S36: mm | T36: 0.06299212598 | U36: 0.03149606299 | V36: 0.03149606299 | W36: 0 | X36: inch
A37: Development | B37: Panasonic | C37: ERJ-2RKF3400X | D37: 2 | E37: R | F37: R109,R110 | H37: 340R, 0.1W, 1% (DEVELOPMENT) | I37: 0402 | J37: -55, +125 | K37: 0.01364 | L37: 250 | M37: 0.02728 | N37: Digi-Key | O37: 1 | P37: 0.5 | Q37: 0.4 | R37: 0 | S37: mm | T37: 0.03937007874 | U37: 0.01968503937 | V37: 0.0157480315 | W37: 0 | X37: inch
A38: Keypad | B38: Taiyo Yuden | C38: UMK105B7102KV-F | D38: 5 | E38: C | F38: C102,C103,C104,C105,C106 | H38: 1000pF, 50v, 10% | I38: 0402 | J38: -55, +125 | K38: 0.0078 | L38: 250 | M38: 0.039 | N38: Digi-Key | O38: 1 | P38: 0.5 | Q38: 0.4 | R38: 0 | S38: mm | T38: 0.03937007874 | U38: 0.01968503937 | V38: 0.0157480315 | W38: 0 | X38: inch
A39: Keypad | B39: FCI | C39: SFW8S-2STME1LF | D39: 1 | E39: J | F39: J101 | H39: 8-pin flex cable connector | I39: SFW8S | K39: 0.596 | L39: 250 | M39: 0.596 | N39: Digi-Key | O39: 14.4 | P39: 3.6 | Q39: 5.3 | R39: 0 | S39: mm | T39: 0.5669291339 | U39: 0.1417322835 | V39: 0.2086614173 | W39: 0 | X39: inch
A40: Keypad | B40: Fairchild | C40: MMBT3904 | D40: 1 | E40: Q | F40: Q101 | H40: NPN, 100 mA, 40v, Beta 100 | I40: SOT-23 | J40: -55, +150 | K40: 0.05732 | L40: 250 | M40: 0.05732 | N40: Digi-Key | O40: 3.04 | P40: 2.64 | Q40: 1.22 | R40: 0 | S40: mm | T40: 0.1196850394 | U40: 0.1039370079 | V40: 0.04803149606 | W40: 0 | X40: inch
A41: Keypad | B41: Panasonic | C41: ERJ-2RKF1582X | D41: 1 | E41: R | F41: R101 | H41: 15.8K, 0.1W, 1% | I41: 0402 | J41: -55, +125 | K41: 0.01364 | L41: 250 | M41: 0.01364 | N41: Digi-Key | O41: 1 | P41: 0.5 | Q41: 0.4 | R41: 0 | S41: mm | T41: 0.03937007874 | U41: 0.01968503937 | V41: 0.0157480315 | W41: 0 | X41: inch
A42: Keypad | B42: Panasonic | C42: ERJ-2RKF1001X | D42: 5 | E42: R | F42: R102,R103,R104,R105,R106 | H42: 1K, 0.1W, 1% | I42: 0402 | J42: -55, +125 | K42: 0.01364 | L42: 250 | M42: 0.0682 | N42: Digi-Key | O42: 1 | P42: 0.5 | Q42: 0.4 | R42: 0 | S42: mm | T42: 0.03937007874 | U42: 0.01968503937 | V42: 0.0157480315 | W42: 0 | X42: inch
A43: LIN | B43: TDK Corp | C43: C1608C0G2A221J | D43: 1 | E43: C | F43: C303 | H43: 220pF, 100v, 5%, Cer | I43: 0603 | J43: -55, +125 | K43: 0.039 | L43: 250 | M43: 0.039 | N43: Digi-Key | O43: 1.6 | P43: 0.8 | Q43: 0.8 | R43: 0 | S43: mm | T43: 0.06299212598 | U43: 0.03149606299 | V43: 0.03149606299 | W43: 0 | X43: inch
A44: LIN | B44: TDK Corp | C44: C1608X7R1H104K | D44: 1 | E44: C | F44: C304 | H44: 0.1uF, 50v, 10%, Cer | I44: 0603 | J44: -55, +125 | K44: 0.018 | L44: 250 | M44: 0.018 | N44: Digi-Key | O44: 1.6 | P44: 0.8 | Q44: 0.8 | R44: 0 | S44: mm | T44: 0.06299212598 | U44: 0.03149606299 | V44: 0.03149606299 | W44: 0 | X44: inch
A45: LIN | B45: Infineon | C45: TLE7259-2GU | D45: 1 | E45: I | F45: IC303 | H45: LIN Transceiver | I45: 8-SOIC | J45: -40, +150 | K45: 1.10472 | L45: 100 | M45: 1.10472 | N45: Digi-Key | O45: 5 | P45: 6 | Q45: 1.75 | R45: 0 | S45: mm | T45: 0.1968503937 | U45: 0.2362204724 | V45: 0.0688976378 | W45: 0 | X45: inch
A46: LIN | B46: Panasonic | C46: ERJ-2RKF1003X | D46: 1 | E46: R | F46: R303 | H46: 100K, 0.1W, 1% | I46: 0402 | J46: -55, +125 | K46: 0.01364 | L46: 250 | M46: 0.01364 | N46: Digi-Key | O46: 1 | P46: 0.5 | Q46: 0.4 | R46: 0 | S46: mm | T46: 0.03937007874 | U46: 0.01968503937 | V46: 0.0157480315 | W46: 0 | X46: inch
A47: LIN | B47: Panasonic | C47: ERJ-6GEY0R00V | D47: 1 | E47: R | F47: R302/L1 (alternate ferrite) | G47: v1.3.0 | H47: 0.0R, 0.1W | I47: 0805 | J47: -55, +126 | K47: 0.01104 | L47: 250 | M47: 0.01104 | N47: Digi-Key | O47: 2 | P47: 1.25 | Q47: 1.45 | R47: 0 | S47: mm | T47: =IF(AND($S47<>"",O47<>""),O47*VLOOKUP($S47,$A$75:$B$77,2),"") -> 0.07874015748 | U47: =IF(AND($S47<>"",P47<>""),P47*VLOOKUP($S47,$A$75:$B$77,2),"") -> 0.04921259843 | V47: =IF(AND($S47<>"",Q47<>""),Q47*VLOOKUP($S47,$A$75:$B$77,2),"") -> 0.05708661417 | W47: =IF(AND($S47<>"",R47<>""),R47*VLOOKUP($S47,$A$75:$B$77,2),"") -> 0 | X47: =IF(S47<>"",IF(S47=$A$77,$A$76,$A$77),"") -> inch
A48: Micro | B48: TDK Corp | C48: C1608X7R1H104K | D48: 1 | E48: C | F48: C101 | H48: 0.1uF, 50v, 10%, Cer | I48: 0603 | J48: -55, +125 | K48: 0.018 | L48: 250 | M48: 0.018 | N48: Digi-Key | O48: 1.6 | P48: 0.8 | Q48: 0.8 | R48: 0 | S48: mm | T48: 0.06299212598 | U48: 0.03149606299 | V48: 0.03149606299 | W48: 0 | X48: inch
A49: Micro | B49: Microchip | C49: PIC18F25K22-E/SO | D49: 1 | E49: I | F49: IC101 | H49: PIC Microprocessor | I49: SOIC-28 | J49: -65, +150 | K49: 2.08 | L49: 300 | M49: 2.08 | N49: Digi-Key | O49: 17.9 | P49: 10.3 | Q49: 2.65 | R49: 0 | S49: mm | T49: 0.7047244094 | U49: 0.405511811 | V49: 0.1043307087 | W49: 0 | X49: inch
A50: Micro | B50: Sullins | C50: LPPB032NFSS-RC | D50: 1 | E50: J | F50: J102 | H50: 6-Pin Programming connector | I50: Sullins-6PS | K50: 0.65452 | L50: 250 | M50: 0.65452 | N50: Digi-Key | O50: 4.21 | P50: 3.1 | Q50: 4.5 | R50: 0 | S50: mm | T50: 0.1657480315 | U50: 0.1220472441 | V50: 0.1771653543 | W50: 0 | X50: inch
A51: Micro | B51: Panasonic | C51: ERJ-2RKF1000X | D51: 1 | E51: R | F51: R107 | H51: 100R, 0.1W, 1% | I51: 0402 | J51: -55, +125 | K51: 0.01364 | L51: 250 | M51: 0.01364 | N51: Digi-Key | O51: 1 | P51: 0.5 | Q51: 0.4 | R51: 0 | S51: mm | T51: 0.03937007874 | U51: 0.01968503937 | V51: 0.0157480315 | W51: 0 | X51: inch
A52: Micro | B52: Panasonic | C52: ERJ-2RKF7502X | D52: 0 | E52: Z | H52: 75K, 0.1W, 1% | I52: 0402 | J52: -55, +125 | K52: 0.01364 | L52: 250 | M52: 0 | N52: Digi-Key | O52: 1 | P52: 0.5 | Q52: 0.4 | R52: 0 | S52: mm | T52: 0.03937007874 | U52: 0.01968503937 | V52: 0.0157480315 | W52: 0 | X52: inch
A53: Micro | B53: Panasonic | C53: ERJ-2RKF1003X | D53: 4 | E53: R | F53: R114,R115,R116,R117 | H53: 100K, 0.1W, 1% | I53: 0402 | J53: -55, +125 | K53: 0.01364 | L53: 250 | M53: 0.05456 | N53: Digi-Key | O53: 1 | P53: 0.5 | Q53: 0.4 | R53: 0 | S53: mm | T53: 0.03937007874 | U53: 0.01968503937 | V53: 0.0157480315 | W53: 0 | X53: inch
A54: Motor | B54: TDK Corp | C54: C1608X7R1H104K | D54: 1 | E54: C | F54: C301 | H54: 0.1uF, 50v, 10%, Cer | I54: 0603 | J54: -55, +125 | K54: 0.018 | L54: 250 | M54: 0.018 | N54: Digi-Key | O54: 1.6 | P54: 0.8 | Q54: 0.8 | R54: 0 | S54: mm | T54: 0.06299212598 | U54: 0.03149606299 | V54: 0.03149606299 | W54: 0 | X54: inch
A55: Motor | B55: Infineon | C55: TLE5205-2G | D55: 1 | E55: I | F55: IC301 | H55: H-Bridge | I55: TO-263 | J55: -40, +150 | K55: 4.919 | L55: 100 | M55: 4.919 | N55: Digi-Key | O55: 15 | P55: 10 | Q55: 4.4 | R55: 0 | S55: mm | T55: 0.5905511811 | U55: 0.3937007874 | V55: 0.1732283465 | W55: 0 | X55: inch
A56: Motor | B56: Mabuchi | C56: FC280SC-20150 | E56: M | F56: Motor | H56: Motor | I56: MabuchiMotor | K56: 1.95 | L56: 100 | M56: 0 | N56: Kysan | O56: 45 | P56: 24.2 | Q56: 18.3 | R56: 0 | S56: mm | T56: 1.771653543 | U56: 0.9527559055 | V56: 0.7204724409 | W56: 0 | X56: inch
A57: Motor | B57: Panasonic | C57: ERJ-2RKF7502X | D57: =1+LEN(F57)-LEN(SUBSTITUTE(F57,",","")) -> 1 | E57: R | F57: R301 | H57: 75K, 0.1W, 1% | I57: 0402 | J57: -55, +125 | K57: 0.01364 | L57: 250 | M57: 0.01364 | N57: Digi-Key | O57: 1 | P57: 0.5 | Q57: 0.4 | R57: 0 | S57: mm | T57: 0.03937007874 | U57: 0.01968503937 | V57: 0.0157480315 | W57: 0 | X57: inch
A58: Motor | B58: Panasonic | C58: ERJ-2RKF1582X | D58: 2 | E58: R | F58: R305,R306 | H58: 15.8K, 0.1W, 1% | I58: 0402 | K58: 0.01364 | L58: 250 | M58: 0.02728 | N58: Digi-Key | O58: 1 | P58: 0.5 | Q58: 0.4 | R58: 0 | S58: mm | T58: 0.03937007874 | U58: 0.01968503937 | V58: 0.0157480315 | W58: 0 | X58: inch
A59: Sense | B59: TDK Corp | C59: C1005X7S2A103K | D59: 2 | E59: C | F59: C202,C203 | H59: 0.01uF, 100v, 10%, Cer | I59: 0402T | J59: -55, +125 | K59: 0.02924 | L59: 250 | M59: 0.05848 | N59: Digi-Key | O59: 1 | P59: 0.5 | Q59: 0.55 | R59: 0 | S59: mm | T59: 0.03937007874 | U59: 0.01968503937 | V59: 0.02165354331 | W59: 0 | X59: inch
A60: Sense | B60: Panasonic | C60: ERJ-2RKF1003X | D60: 2 | E60: R | F60: R203,R208 | H60: 100K, 0.1W, 1% | I60: 0402 | J60: -55, +125 | K60: 0.01364 | L60: 250 | M60: 0.02728 | N60: Digi-Key | O60: 1 | P60: 0.5 | Q60: 0.4 | R60: 0 | S60: mm | T60: 0.03937007874 | U60: 0.01968503937 | V60: 0.0157480315 | W60: 0 | X60: inch
A61: Sense | B61: Panasonic | C61: ERJ-2RKF8871X | D61: 2 | E61: R | F61: R207,R209 | H61: 8870R, 0.1W, 1% | I61: 0402 | J61: -55, +125 | K61: 0.01364 | L61: 250 | M61: 0.02728 | N61: Digi-Key | O61: 1 | P61: 0.5 | Q61: 0.4 | R61: 0 | S61: mm | T61: 0.03937007874 | U61: 0.01968503937 | V61: 0.0157480315 | W61: 0 | X61: inch
A62: Wake Out | B62: TDK Corp | C62: C1608X7R1H104K | D62: 1 | E62: C | F62: C302 | H62: 0.1uF, 50v, 10%, Cer | I62: 0603 | J62: -55, +125 | K62: 0.018 | L62: 250 | M62: 0.018 | N62: Digi-Key | O62: 1.6 | P62: 0.8 | Q62: 0.8 | R62: 0 | S62: mm | T62: 0.06299212598 | U62: 0.03149606299 | V62: 0.03149606299 | W62: 0 | X62: inch
A63: Wake Out | B63: Infineon | C63: BSP452 | D63: 1 | E63: I | F63: IC302 | H63: High side switch | I63: SOT-223 | J63: -40, +150 | K63: 1.2824 | L63: 100 | M63: 1.2824 | N63: Digi-Key | O63: 6.5 | P63: 7 | Q63: 1.7 | R63: 0 | S63: mm | T63: 0.2559055118 | U63: 0.2755905512 | V63: 0.06692913386 | W63: 0 | X63: inch
E64: Z | M64: 0
E65: Z | M65: 0
E66: Z | M66: 0
E67: Z | M67: 0
E68: Z | M68: 0
E69: =IF(F69<>"",LEFT(F69,1),"Z") -> Z | M69: 0
E70: Z | M70: 0
E71: Z
L72: Total | M72: =SUM(M2:M71) -> 31.08158
O74: Max Height | Q74: 9.652 | S74: mm
A75: Unit Lookup | B75: To alternate | O75: Max Depth | Q75: 1.5 | R75: 1.5 | S75: mm
A76: inch | B76: =1/B77 -> 25.4
A77: mm | B77: =1/25.4 -> 0.03937007874
A80: Package | B80: Length | C80: Width | D80: Height | E80: Depth | F80: Units
A81: 0402 | B81: 1 | C81: 0.5 | D81: 0.4 | F81: mm
A82: 0402T | B82: 1 | C82: 0.5 | D82: 0.55 | F82: mm
A83: 0603 | B83: 1.6 | C83: 0.8 | D83: 0.8 | F83: mm
A84: 0805 | B84: 2 | C84: 1.25 | D84: 1.45 | F84: mm
A85: 1206 | B85: 3.2 | C85: 1.6 | D85: 0.7 | F85: mm
A86: 1210 | B86: 3.2 | C86: 2.44 | D86: 2.8 | F86: mm | K86: 500 | L86: v
A87: 2220 | B87: 5.7 | C87: 5 | D87: 2.5 | F87: mm | K87: 1000000 | L87: r
A88: 26-WFQFN | B88: 6 | C88: 4 | D88: 0.74 | F88: mm | K88: =K86*K86/K87 -> 0.25 | L88: w
A89: 8-SOIC | B89: 5 | C89: 6 | D89: 1.75 | F89: mm
A90: CAN SMD-4 | B90: 4 | C90: 4 | D90: 5.4 | F90: mm
A91: CAN SMD-6 | B91: 6.3 | C91: 6.3 | D91: 5.8 | F91: mm
A92: CAN SMD-8 | B92: 8 | C92: 8 | D92: 6.2 | F92: mm
A93: CAN SMD-8T | B93: 8 | C93: 8 | D93: 10.2 | F93: mm
A94: MabuchiMotor | B94: 45 | C94: 24.2 | D94: 18.3 | F94: mm
A95: Mallory | B95: 14 | C95: 14 | D95: 7.7 | E95: 6.7 | F95: mm
A96: MSOP-8 | B96: 5 | C96: 3 | D96: 1.1 | F96: mm
A97: NS12575 | B97: 12.5 | C97: 12.5 | D97: 7.5 | F97: mm
A98: SC88A | B98: 5 | C98: 6 | D98: 1.75 | F98: mm
A99: SFW8S | B99: 14.4 | C99: 3.6 | D99: 5.3 | F99: mm
A100: SMB | B100: 7.1 | C100: 6.1 | D100: 2.41 | F100: mm
A101: SMC | B101: 2.1 | C101: 2 | D101: 5.3 | F101: mm
A102: SMD | B102: 2.1 | C102: 2 | D102: 5.3 | F102: mm
A103: SOIC-28 | B103: 17.9 | C103: 10.3 | D103: 2.65 | F103: mm
A104: SOT-223 | B104: 6.5 | C104: 7 | D104: 1.7 | F104: mm
A105: SOT-23 | B105: 3.04 | C105: 2.64 | D105: 1.22 | F105: mm
A106: SOT-23-5 | B106: 3.04 | C106: 3 | D106: 1.3 | F106: mm
A107: Sullins-6PS | B107: 4.21 | C107: 3.1 | D107: 4.5 | F107: mm
A108: TO-252-5 | B108: 9.98 | C108: 6.5 | D108: 2.3 | F108: mm
A109: TO-263 | B109: 15 | C109: 10 | D109: 4.4 | F109: mm
A110: Z - Last Row | B110: 0 | C110: 0 | D110: 0 | F110: mm
A114: Row Labels | B114: Sum of Est. Cost
A115: +12v Supply | B115: 13.75064
A116: +3.3v Supply | B116: 0.761
A117: Keypad | B117: 0.6884
A118: LIN | B118: 1.17536
A119: Micro | B119: 2.79344
A120: Motor | B120: 6.91428
A121: Sense | B121: 0.05652
A122: Wake Out | B122: 1.3004
A123: (blank)
A124: +12v Shutdown | B124: 0.01364
A125: +12v Clean Supply | B125: 3.10304
A126: Development | B126: 0.15264
A127: Grand Total | B127: 30.70936

Sheet LT3690 PS
A1: Signal | B1: Value | C1: Units | D1: Notes | F1: Based on LT3690
A2: V-IN | B2: 28 | C2: v | D2: Typical V-in
A3: V-IN Max | B3: 36 | C3: v | D3: Overload shutdown
A5: V-OUT Target | B5: 13 | C5: v
A6: Vin Low | B6: 15 | C6: v
A7: RT [R21] | B7: 72900 | C7: ohms
A8: R4 (FB to Gnd - R22) | B8: 38300 | C8: ohms | D8: R4 is data sheet reference
A9: R3 (Out to FB - R23) | B9: =B8*(V_OUT/V_FB-1) -> 584075 | C9: ohms | D9: R3 is data sheet reference
A10: =A8 & " => 1%" -> R4 (FB to Gnd - R22) => 1% | B10: =Resistor((B8)) -> 38300 | C10: ohms | D10: Selected Resistor Value
A11: =A9 & " => 1%" -> R3 (Out to FB - R23) => 1% | B11: =Resistor((B9)) -> 590000 | C11: ohms | D11: Selected Resistor Value
A12: =A7 & " => 1%" -> RT [R21] => 1% | B12: =Resistor((RT)) -> 73200 | C12: ohms | D12: Selected Resistor Value
A13: V-FB | B13: 0.8 | C13: v
A14: V-SW | B14: 0.37 | C14: v
A15: V-LS | B15: 0.12 | C15: v
A16: T-ON(min) | B16: 0.25 | C16: usec
A17: T-OFF(min) | B17: 0.21 | C17: usec
A18: Fsw(max) | B18: =(V_OUT+V_LS)/(0.000001*T_ON*(V_IN-V_SW+V_LS))/1000000 -> 1.891171171 | C18: MHz | D18: Highest acceptible frequency
A19: Freq (Select) | B19: =VLOOKUP(RT,A33:B47,2) -> 0.3 | C19: MHz | D19: Chosen frequency
A20: DC-min | B20: =F_Select*0.000001*T_ON*1000000 -> 0.075 | C20: % duty cycle
A21: DC-max | B21: =1-1000000*F_Select*0.000001*T_OFF -> 0.937 | C21: % duty cycle
A22: V-IN(min) | B22: =(V_OUT+V_LS)/(1-1000000*F_Select*0.000001*T_OFF)-V_LS+V_SW -> 14.25213447 | C22: v by duty cycle
A23: V-IN(max) | B23: =(V_OUT+V_LS)/(1000000*F_Select*0.000001*T_ON)-V_LS+V_SW -> 175.1833333 | C23: v by duty cycle
A24: I-L(peak) | B24: =8+(V_IN_OVERLOAD-V_OUT)/(0.000001*Inductance)*0.000001*T_ON -> 8.196236804 | C24: A
A25: L - Inductor | B25: =(V_OUT+V_LS)*0.67/F_Select -> 29.30133333 | C25: uHenry | D25: Target Value
A26: Lmin - Inductor (min) | B26: =(V_OUT +V_LS)*0.42/F_Select -> 18.368 | C26: uHenry | D26: Minimum value
A27: I-L(Peak to peak ripple) | B27: =(1-10%)*(V_OUT+V_LS)/(B25*F_SW) -> 0.2130875728 | C27: A
A28: C-OUT (output cap) | B28: =150/(V_OUT*F_SW) -> 6.101225375 | C28: uF | D28: (X5R or X7R ceramic best) or Electrolytic with ESR <= 0.03ohm
A29: C-Soft Start | B29: =B28/10000 -> 0.0006101225375 | C29: uF
A30: T-Ramp | B30: =B29*0.8/0.000002 -> 244.049015 | C30: usec
A32: Rt | B32: MHz
A33: 9590 | B33: 1.5
A34: 10600 | B34: 1.4
A35: 11800 | B35: 1.3
A36: 13300 | B36: 1.2
A37: 15000 | B37: 1.1
A38: 17000 | B38: 1
A39: 19600 | B39: 0.9
A40: 22700 | B40: 0.8
A41: 26800 | B41: 0.7
A42: 32400 | B42: 0.6
A43: 40200 | B43: 0.5
A44: 52200 | B44: 0.4
A45: 72900 | B45: 0.3
A46: 117000 | B46: 0.2
A47: 164000 | B47: 0.15
A53: SS | B53: Cout | C53: L
A54: .001uF | B54: 10 uF | C54: 18 uH
A80: .001uF | B80: 10 uF | C80: 12 uH
A106: .0001 uF | B106: 10 uF | C106: 12uH
A132: .001uF | B132: 10 uF | C132: 27 uH

Sheet PCB Mech
A1: Origin for PCB | B1: LL corner | D1: from 5 Oct 2012 email | K1: Values | L1: mm | M1: Value | N1: in
A2: PCB width | B2: 29.9 | C2: mm | K2: 25.4 | L2: mm | M2: =K2/25.4 -> 1 | N2: in | O2: test
A3: PCB height | B3: 82.6 | C3: mm | K3: 4.034 | L3: mm | M3: =K3/25.4 -> 0.1588188976 | N3: in | O3: Ledge Diameter
A4: Notch to notch width | B4: 26.5 | C4: mm
A5: mount hole CL to CL width | B5: 16 | C5: mm | K5: 2.733 | L5: mm | M5: =K5/25.4 -> 0.1075984252 | N5: in | O5: Post Diameter
A6: mount hole CL to CL height | B6: 75.5 | C6: mm | K6: 5 | L6: mm | M6: 0.1968503937 | N6: in | O6: Ramp width
A7: top hole to notch center | B7: 18.75 | C7: mm | K7: 25.637 | L7: mm | M7: 1.009330709 | N7: in | O7: lower post to lower diag rib
A8: notch offset | B8: 1.5 | C8: mm | K8: 3.262 | L8: mm | M8: 0.1284251969 | N8: in | O8: =1.139+0.128 -> 1.267
A9: notch diameter | B9: 5.5 | C9: mm | K9: 23.95 | L9: mm | M9: 0.9429133858 | N9: in | O9: =3.111-M9 -> 2.168086614
A10: right edge to mount hole | B10: 6.95 | C10: mm
A11: top edge to top mount holes | B11: 4.54 | C11: mm | K11: 12.9 | L11: mm | M11: 0.5078740157 | N11: in
A12: Verifications
A13: left edge to mount hole | B13: =B2-B5-B10 -> 6.95 | C13: mm
A14: left notch inner x | B14: =(B2-B4)/2 -> 1.7 | C14: mm
A15: right notch innter x | B15: =B2-B14 -> 28.2 | C15: mm
A17: Hole 1 x (bottom left) | B17: =B2/2-B5/2 -> 6.95
A18: Hole 1 y | B18: =B3-B11-B6 -> 2.56
A19: Hole 2 x (top-left) | B19: =B17 -> 6.95
A20: Hole 2 y | B20: =B18+B6 -> 78.06
A21: Hole 3 x (top-right) | B21: =B17+B5 -> 22.95
A22: Hole 3 y | B22: =B20 -> 78.06
A23: Hole 4 x (bottom-right) | B23: =B21 -> 22.95
A24: Hole 4 y | B24: =B18 -> 2.56
A25: notch 1 x (top-right-upper-origin) | B25: =B2-(B2-B4)/2+B9/2 -> 30.95
A26: notch 1a y (top offset) | B26: =B22-B7+B8/2 -> 60.06
A27: notch 1b y (bottom offset) | B27: =B22-B7-B8/2 -> 58.56
A28: notch 2 x | B28: =0+(B2-B4)/2-B9/2 -> -1.05
A29: notch 2 ya (top offset) | B29: =B26 -> 60.06
A30: notch 2 yb (bottom offset) | B30: =B27 -> 58.56
A32: =A17 -> Hole 1 x (bottom left) | B32: ="(" & B17 & ", " & B18 & ")" -> (6.95, 2.55999999999999)
A33: =A19 -> Hole 2 x (top-left) | B33: ="(" & B19 & ", " & B20 & ")" -> (6.95, 78.06)
A34: =A21 -> Hole 3 x (top-right) | B34: ="(" & B21 & ", " & B22 & ")" -> (22.95, 78.06)
A35: =A23 -> Hole 4 x (bottom-right) | B35: ="(" & B23 & ", " & B24 & ")" -> (22.95, 2.55999999999999)
A37: centerline to notch x | B37: =B25-B2/2 -> 16
A38: notch center y | B38: =B20-B7 -> 59.31
A39: notch lower y | B39: =B38-B8/2 -> 58.56
A40: verif top hole to top edge | B40: =B3-B20 -> 4.54

Sheet PCB Mech (2)
A1: Origin for PCB | B1: LL corner | D1: from 5 Oct 2012 email | K1: Values | L1: mm | M1: Value | N1: in
A2: PCB width | B2: 27.9 | C2: mm | K2: 25.4 | L2: mm | M2: =K2/25.4 -> 1 | N2: in | O2: test
A3: PCB height | B3: 80.6 | C3: mm | K3: 4.034 | L3: mm | M3: =K3/25.4 -> 0.1588188976 | N3: in | O3: Ledge Diameter
A4: Notch to notch width | B4: 24.5 | C4: mm
A5: mount hole CL to CL width | B5: 16 | C5: mm | K5: 2.733 | L5: mm | M5: =K5/25.4 -> 0.1075984252 | N5: in | O5: Post Diameter
A6: mount hole CL to CL height | B6: 75.5 | C6: mm | K6: 5 | L6: mm | M6: 0.1968503937 | N6: in | O6: Ramp width
A7: top hole to notch center | B7: 18.75 | C7: mm | K7: 25.637 | L7: mm | M7: 1.009330709 | N7: in | O7: lower post to lower diag rib
A8: notch offset | B8: 2.5 | C8: mm | K8: 3.262 | L8: mm | M8: 0.1284251969 | N8: in | O8: =1.139+0.128 -> 1.267
A9: notch diameter | B9: 5.5 | C9: mm | K9: 23.95 | L9: mm | M9: 0.9429133858 | N9: in | O9: =3.111-M9 -> 2.168086614
A10: right edge to mount hole | B10: 5.95 | C10: mm
A11: top edge to top mount holes | B11: 3.54 | C11: mm | K11: 12.9 | L11: mm | M11: 0.5078740157 | N11: in
A12: Verifications
A13: left edge to mount hole | B13: =B2-B5-B10 -> 5.95 | C13: mm
A14: left notch inner x | B14: =(B2-B4)/2 -> 1.7 | C14: mm
A15: right notch innter x | B15: =B2-B14 -> 26.2 | C15: mm
A17: Hole 1 x (bottom left) | B17: =B2/2-B5/2 -> 5.95
A18: Hole 1 y | B18: =B3-B11-B6+1 -> 2.56
A19: Hole 2 x (top-left) | B19: =B17 -> 5.95
A20: Hole 2 y | B20: =B18+B6 -> 78.06
A21: Hole 3 x (top-right) | B21: =B17+B5 -> 21.95
A22: Hole 3 y | B22: =B20 -> 78.06
A23: Hole 4 x (bottom-right) | B23: =B21 -> 21.95
A24: Hole 4 y | B24: =B18 -> 2.56
A25: notch 1 x (top-right-upper-origin) | B25: =B2-(B2-B4)/2+B9/2 -> 28.95
A26: notch 1a y (top offset) | B26: =B22-B7+B8/2 -> 60.56
A27: notch 1b y (bottom offset) | B27: =B22-B7-B8/2 -> 58.06
A28: notch 2 x | B28: =0+(B2-B4)/2-B9/2 -> -1.05
A29: notch 2 ya (top offset) | B29: =B26 -> 60.56
A30: notch 2 yb (bottom offset) | B30: =B27 -> 58.06
A32: =A17 -> Hole 1 x (bottom left) | B32: ="(" & B17 & ", " & B18 & ")" -> (5.95, 2.55999999999999)
A33: =A19 -> Hole 2 x (top-left) | B33: ="(" & B19 & ", " & B20 & ")" -> (5.95, 78.06)
A34: =A21 -> Hole 3 x (top-right) | B34: ="(" & B21 & ", " & B22 & ")" -> (21.95, 78.06)
A35: =A23 -> Hole 4 x (bottom-right) | B35: ="(" & B23 & ", " & B24 & ")" -> (21.95, 2.55999999999999)
A37: centerline to notch x | B37: =B25-B2/2 -> 15
A38: notch center y | B38: =B20-B7 -> 59.31
A39: notch lower y | B39: =B38-B8/2 -> 58.06
A40: verif top hole to top edge | B40: =B3-B20 -> 2.54

Sheet PIC Load Dump
A1: Signal | B1: Value | C1: Units | D1: Notes | F1: VDD | G1: DAC Count | H1: DAC V | I1: Equiv Bat
A2: Battery | B2: 32 | C2: v | F2: 3.3 | G2: 0 | H2: =($F$2*G2/2^5) -> 0 | I2: =H2*($B$3+$B$4)/$B$4 -> 0 | K2: Signal | L2: Value | M2: Units | N2: Notes
A3: R16 | B3: 100000 | C3: ohm | G3: 1 | H3: 0.103125 | I3: =H3*($B$3+$B$4)/$B$4 -> 1.265751832 | K3: R5 | L3: 100000 | M3: Ohms
A4: R20 | B4: 8870 | C4: ohm | G4: 2 | H4: 0.20625 | I4: =H4*($B$3+$B$4)/$B$4 -> 2.531503664 | K4: R6 | L4: 100000 | M4: Ohms
A5: V analog in | B5: =B2*B4/(B3+B4) -> 2.607146138 | C5: v | G5: 3 | H5: 0.309375 | I5: 3.797255496 | K5: V-Level | L5: =B6*L4/(L3+L4) -> 1.65 | M5: v
A6: V Ref | B6: 3.3 | C6: v | G6: 4 | H6: 0.4125 | I6: 5.063007328 | K6: I R5-R6 | L6: =1000*B6/(L3+L4) -> 0.0165 | M6: mA
A7: A/D | B7: =B5/B6*2^12 -> 3236.021388 | C7: Counts | G7: 5 | H7: 0.515625 | I7: 6.32875916
G8: 6 | H8: 0.61875 | I8: 7.594510992
A9: R16 Nearest 1% | B9: =Resistor(B3) -> 100000 | C9: ohm | G9: 7 | H9: 0.721875 | I9: 8.860262824
A10: R20 Nearest 1% | B10: =Resistor((B4)) -> 8870 | C10: ohm | G10: 8 | H10: 0.825 | I10: 10.12601466
G11: 9 | H11: 0.928125 | I11: 11.39176649
G12: 10 | H12: 1.03125 | I12: 12.65751832
G13: 11 | H13: 1.134375 | I13: 13.92327015
G14: 12 | H14: 1.2375 | I14: 15.18902198
G15: 13 | H15: 1.340625 | I15: 16.45477382
G16: 14 | H16: 1.44375 | I16: 17.72052565
G17: 15 | H17: 1.546875 | I17: 18.98627748
G18: 16 | H18: 1.65 | I18: 20.25202931
G19: 17 | H19: 1.753125 | I19: 21.51778114
G20: 18 | H20: 1.85625 | I20: 22.78353298
G21: 19 | H21: 1.959375 | I21: 24.04928481
G22: 20 | H22: 2.0625 | I22: 25.31503664
G23: 21 | H23: 2.165625 | I23: 26.58078847
G24: 22 | H24: 2.26875 | I24: 27.8465403
G25: 23 | H25: 2.371875 | I25: 29.11229214
G26: 24 | H26: 2.475 | I26: 30.37804397
G27: 25 | H27: 2.578125 | I27: 31.6437958
G28: 26 | H28: 2.68125 | I28: 32.90954763
G29: 27 | H29: 2.784375 | I29: 34.17529946
G30: 28 | H30: 2.8875 | I30: 35.4410513
G31: 29 | H31: 2.990625 | I31: 36.70680313
G32: 30 | H32: 3.09375 | I32: 37.97255496
G33: 31 | H33: 3.196875 | I33: 39.23830679

Sheet WakeIn
A1: Signal | B1: Value | C1: Units | D1: Notes
A2: Battery | B2: 36 | C2: v
A3: R34 | B3: 9760 | C3: ohm | D3: Parallel resistors to handle the power
A4: R35 | B4: =B3 -> 9760 | C4: ohm
A5: R3 | B5: =B4 -> 9760 | C5: ohm
A6: ="Current " &A3 -> Current R34 | B6: =$B$2/B3 -> 0.00368852459 | C6: A
A7: ="Current " &A4 -> Current R35 | B7: =$B$2/B4 -> 0.00368852459 | C7: A
A8: ="Current " &A5 -> Current R3 | B8: =$B$2/B5 -> 0.00368852459 | C8: A
A9: ="Power " &A3 -> Power R34 | B9: =$B$2*B6 -> 0.1327868852 | C9: W | D9: 0.25W components
A10: ="Power " &A4 -> Power R35 | B10: =$B$2*B7 -> 0.1327868852 | C10: W
A11: ="Power " &A5 -> Power R3 | B11: =$B$2*B8 -> 0.1327868852 | C11: W
A13: Battery (low) | B13: 12 | C13: v
A14: Load | B14: =1/(1/B3+1/B4+1/B5) -> 3253.333333 | C14: ohm
A15: WakeIn current | B15: =B13/B14 -> 0.00368852459 | C15: a
A17: Battery (low) | B17: 28 | C17: v
A18: Load | B18: =1/(1/B3+1/B4+1/B5) -> 3253.333333 | C18: ohm
A19: WakeIn current | B19: =B17/B18 -> 0.008606557377 | C19: a
A20: Power | B20: =B17^2/B3 -> 0.08032786885
A23: R16 Nearest 1% | B23: =Resistor(B3) -> 9760 | C23: ohm
A24: R20 Nearest 1% | B24: =Resistor(B4) -> 9760 | C24: ohm
D34: JD Requirement - 4 mA @ 12v for contact cleaning

Sheet WakeOut
A1: Subsystem | B1: Manufacturer | C1: Part Number | D1: Qty | E1: Designator | F1: Description | G1: Package | H1: T-storage | I1: Est. Cost | J1: Qty | K1: $ Ext. | L1: Source | M1: Length | N1: Width | O1: Height | P1: Depth | Q1: Units | R1: Length | S1: Width | T1: Height | U1: Depth | V1: Units
A3: Wake Out | B3: Infineon | C3: BSP452 | D3: =1+LEN(E3)-LEN(SUBSTITUTE(E3,",","")) -> 1 | E3: IC6 | F3: High side switch | G3: SOT-223 | I3: 1.4281 | J3: 100 | K3: =D3*I3 -> 1.4281 | L3: Digi-Key | M3: 6.5 | N3: 7 | O3: 1.7 | Q3: mm | R3: =IF(AND($Q3<>"",M3<>""),M3*VLOOKUP($Q3,$A$67:$B$69,2),"") ->  | S3: =IF(AND($Q3<>"",N3<>""),N3*VLOOKUP($Q3,$A$67:$B$69,2),"") ->  | T3: =IF(AND($Q3<>"",O3<>""),O3*VLOOKUP($Q3,$A$67:$B$69,2),"") ->  | U3: =IF(AND($Q3<>"",P3<>""),P3*VLOOKUP($Q3,$A$67:$B$69,2),"") ->  | V3: =IF(Q3<>"",IF(Q3=$A$69,$A$68,$A$69),"") -> 0
A5: Wake Out | B5: Infineon | C5: BTS4140N | D5: =1+LEN(E5)-LEN(SUBSTITUTE(E5,",","")) -> 1 | E5: IC6 | F5: high side driver | G5: SOT-223 | I5: 0.9344 | J5: 100 | K5: =D5*I5 -> 0.9344 | L5: Digi-Key
A6: Wake Out | B6: Infineon | C6: BSS123 L6327 | D6: =1+LEN(E6)-LEN(SUBSTITUTE(E6,",","")) -> 1 | F6: N-channel mosfet | G6: SOT-23 | I6: 0.1512 | J6: 100 | K6: =D6*I6 -> 0.1512 | L6: Digi-Key
A22: Vout | B22: =1.242*(B24/B23+1) -> 11.85402532
A23: R1 | B23: =Resistor(15800) -> 15800
A24: R2 | B24: 135000

Sheet LED Backlight
A1: LED Load Description | B1: Value | C1: Units | E1: Notes
A2: LED Voltage Drop max | B2: 3.1 | C2: v
A3: LED Voltage Drop min | B3: 2.7 | C3: v
A4: LED Max Current (at 3.1v) | B4: 0.005 | C4: A
A5: # LEDs in Series | B5: 2 | C5: pc
A6: # Parallel strings | B6: 2 | C6: count
A7: Voltage - Minimum | B7: 12 | C7: v
A9: Resistance - Series | B9: =Resistor((B7-B5*B2)/B4) -> 1150 | C9: ohm
A10: LED Max Current (at 2.7v) | B10: =(B7-B5*B3)/B9 -> 0.005739130435 | C10: A
A11: Keypad Current at Vmin | B11: =B$6*(B7-B$5*B$2)/B$9 -> 0.01008695652 | C11: A
A12: Keypad Current at LED min V | B12: =B6*B10 -> 0.01147826087 | C12: A
A13: Current Limit Power Diss | B13: =(B7-B3)*B10 -> 0.05337391304 | C13: W
A15: LED Driver | B15: Value | C15: Units
A16: Q2 collector current | B16: =B12 -> 0.01147826087 | C16: A
A17: Q2 DC current gain | B17: 72 | C17: hFE
A18: Q2 Base Drive | B18: =B16/B17 -> 0.0001594202899 | C18: A
A19: Q2 Vbe | B19: 0.6 | C19: v
A20: Port Pin Vout High | B20: 3.1 | C20: v
A21: R Base Drive resistor | B21: =(B20-B19)/B18 -> 15681.81818 | C21: ohm
A22: Nearest 1% value | B22: =Resistor((B21)) -> 15800 | C22: ohm
A23: R Power dissipation | B23: =(B20-B19)*B18 -> 0.0003985507246 | C23: W
A29: Development LEDs | B29: Value | C29: Units
A30: LED Drive voltage | B30: 3.3 | C30: v
A31: LED voltage drop max | B31: 2.4 | C31: v
A32: LED drive current | B32: 0.005 | C32: A
A33: Series Resistor | B33: =(B30-B31)/B32 -> 180 | C33: ohm
A34: Nearest 1% value | B34: =Resistor(B33) -> 178 | C34: ohm
A35: Resistor Power dissipation | B35: =(B30-B31)*B32 -> 0.0045 | C35: W

Sheet Prog
A1: Reset protection | B1: Value | C1: Units
A2: Series Resistor | B2: 100 | C2: ohm
A3: Max voltage diff | B3: 5 | C3: v
A4: Resistor Power Diss | B4: =B3^2/B2 -> 0.25 | C4: W

Sheet 12v Power
A1: Signal | B1: Value | C1: Units | D1: Notes | F1: Value | G1: Units | H1: Notes
A2: V-IN | B2: 28 | C2: v | F2: 34 | G2: v | H2: Controlled shutdown
A3: V-OUT | B3: 12 | C3: v | F3: 12 | G3: v
A4: R1 | B4: =Resistor(B5*(B3/1.193-1)) -> 143000 | C4: ohm
A5: R2 | B5: =Resistor(15800) -> 15800 | C5: ohm
A6: Current - R1,R2 | B6: =B3/(B4+B5) *1000 -> 0.07556675063 | C6: mA
A8: 12v Loads | B8: Value | C8: Units | D8: Notes | F8: Value | G8: Units | H8: Notes
A9: Quiescient Current | B9: 0.025 | C9: mA | F9: 0.025 | G9: mA
A10: LIN | B10: =1000*'LIN Xcvr'!B12 -> 17 | C10: mA | D10: 27 mA as master | F10: 0.03 | G10: mA | H10: No transmit
A11: Acoustic Signal | B11: 5 | C11: mA | F11: 0 | G11: mA | H11: Signal Off
A12: Backlight LEDs | B12: =1000*'LED Backlight'!B16 -> 11.47826087 | C12: mA | D12: from LED Sheet | F12: =0.5*B12 -> 5.739130435 | G12: mA
A13: 3.3v Supply | B13: ='3.3v Power'!B38 -> 21.51489135 | C13: mA | D13: from 3.3v Power sheet | F13: ='3.3v Power'!E38 -> 5.189889135 | G13: mA | H13: Includes all loads
A14: Total | B14: =SUM(B9:B13) -> 55.01815222 | C14: mA | F14: =SUM(F9:F13) -> 10.98401957 | G14: mA
A16: Operating Junction Limit | B16: 125 | C16: °C | D16: Component Limit
A17: Power Dissipation | B17: =(B2-B3)*B14/1000 -> 0.8802904356 | C17: W | F17: =(F2-F3)*F14/1000 -> 0.2416484305 | G17: W
A19: Temp Junct to Board | B19: 34 | C19: °C / W | F19: 34 | G19: °C / W
A21: Temp Rise | B21: =B17*B19 -> 29.92987481 | C21: °C | F21: =F17*F19 -> 8.216046638 | G21: °C
A22: Ambient | B22: 85 | C22: °C | F22: 85 | G22: °C
A23: Junction Temp | B23: =SUM(B21:B22) -> 114.9298748 | C23: °C | F23: =SUM(F21:F22) -> 93.21604664 | G23: °C

Sheet 3.3v Power
A1: Description | B1: Value | C1: Units | D1: Notes
A2: LM2936DT-3.3 | B2: 3.3 | C2: v | D2: regulated output voltage, 50 mA max. -50, +60
A4: V Battery min | B4: 9 | C4: v
A5: V Battery max operating | B5: 32 | C5: v | D5: max operating (does not subtract reverse diode
A6: V Battery max | B6: 36 | C6: v | D6: auto-sleep
A8: I Load min | B8: 0.5 | C8: mA
A9: I Load max operating | B9: =B31 -> 10 | C9: mA | D9: Average current
A10: I Load max | B10: 2 | C10: mA
A12: Power dissipation min | B12: =(B4-$B$2)*B8 -> 2.85 | C12: mW
A13: Power dissipation max oper. | B13: =(B5-$B$2)*B9 -> 287 | C13: mW | D13: max operating
A14: Power dissipation max | B14: =(B6-$B$2)*B10 -> 65.4 | C14: mW | D14: Linear regulator dissipation
A16: Ambient temp nominal | B16: 25 | C16: °C
A17: Ambient temp max | B17: 85 | C17: °C
A18: Temp Rise J-A | B18: 140 | C18: °C / W | D18: Component spec
A19: Calc. Temp Rise | B19: =B18*B13/1000 -> 40.18 | C19: °C
A20: Calc. Temp max oper | B20: =B17+B19 -> 125.18 | C20: °C | D20: Spec is 150°C, with power diss internally limited
A22: Diode Drop | B22: 1 | C22: v | D22: Reverse Protection
A23: Current | B23: 0.05 | C23: A
A24: Diode Power | B24: =1000*B22*B23 -> 50 | C24: mW
A26: Development LED Voltage | B26: 1.6 | C26: v
A27: Target Current | B27: 5 | C27: mA
A28: Nearest 1% resistor | B28: =Resistor((B2-B26)/(B27/1000)) -> 340 | C28: ohm
A30: Current Requirements | B30: Value | C30: Units | D30: Notes | E30: Value | F30: Units | G30: Notes
A31: PIC | B31: 10 | C31: mA | D31: Cranking hard | E31: 4 | F31: mA | G31: gentle snooze
A32: LED Driver | B32: =1000*(B2-0.6)/2050 -> 1.317073171 | C32: mA | D32: 100% on | E32: =0.1 *1000*(B2-0.6)/2050 -> 0.1317073171 | F32: mA | G32: 10% on
A33: Acoustic Driver | B33: =1000*(B2-0.6)/33000 -> 0.08181818182 | C33: mA | D33: 100% on | E33: =0.1 * 1000*(B2-0.6)/33000 -> 0.008181818182 | F33: mA | G33: 10% on
A34: Test Point LEDs (2) | B34: =2*B27 -> 10 | C34: mA | D34: both on | E34: =0.1 * 2*B27 -> 1 | F34: mA | G34: 10% on
A35: HV Enable | B35: =1000*B2/100000 -> 0.033 | C35: mA | D35: hv on | E35: =1000*E2/100000 -> 0 | F35: mA | G35: hv off
A36: Quiescient Current | B36: 0.05 | C36: mA | D36: regulator internal | E36: 0.05 | F36: mA | G36: regulator internal
A37: LIN RxD | B37: =1000*B2/100000 -> 0.033 | C37: mA | D37: normal | E37: =1000*E2/100000 -> 0 | F37: mA | G37: sleep
A38: Total | B38: =SUM(B31:B37) -> 21.51489135 | C38: mA | E38: =SUM(E31:E37) -> 5.189889135 | F38: mA

Sheet Motor
A1: Description | B1: Value | C1: Units | D1: Notes
A2: Min Voltage | B2: 9 | C2: V | D2: Assumes the motor is rated to operate at this minimum voltage
A3: Motor Current @Min V | B3: 5 | C3: A | D3: And current
A4: Power Min | B4: =B2*B3 -> 45 | C4: W
A6: Voltage 1 | B6: 12 | C6: V
A7: Motor Current @V1 | B7: =B$3 * B6/B$2 -> 6.666666667 | C7: A
A8: Power 1 | B8: =B6*B7 -> 80 | C8: W
A10: Voltage 2 | B10: 24 | C10: V
A11: Motor Current @V2 | B11: =B$3 * B10/B$2 -> 13.33333333 | C11: A
A12: Power 2 | B12: =B10*B11 -> 320 | C12: W
A14: Voltage 2 | B14: 32 | C14: V
A15: Motor Current @V2 | B15: =B$3 * B14/B$2 -> 17.77777778 | C15: A
A16: Power 3 | B16: =B14*B15 -> 568.8888889 | C16: W
A18: Error Flag Behavior | B18: Value | C18: Units | D18: Description
A19: Vcc | B19: 3.3 | C19: v
A20: EF leakage | B20: 10 | C20: uA
A21: Nominal equiv R | B21: =B19/(B20*0.000001) -> 330000 | C21: ohm
A22: Pullup | B22: =Resistor(75000) -> 75000 | C22: ohm
A23: EF V leakage | B23: =B19*B21/(B22+B21) -> 2.688888889 | C23: bill25
A25: PIC Input High (TTL) | B25: 2 | C25: v
A26: PIC Input High (TTL2) | B26: =0.8+0.25*B19 -> 1.625 | C26: v
A27: PIC Input High (Schmitt) | B27: =0.8*B19 -> 2.64 | C27: v
A28: PIC Input High (I2C) | B28: =0.7*B19 -> 2.31 | C28: v
A29: PIC Input High (SMBus) | B29: 2.1 | C29: v

Sheet LIN Xcvr
A1: Vendor | B1: Part # | C1: LIN V
A2: Infineon | B2: TLE7259-2GE | C2: 2
A5: LIN Master | B5: Value | C5: Units
A6: LIN MASTER | B6: 1 | C6: True/False
A7: Vsupply | B7: 12 | C7: v
A8: Resistor | B8: =IF(B6,1000,1000000) -> 1000 | C8: ohm
A9: Current - short crkt | B9: =B7/B8 -> 0.012 | C9: A
A10: Power Dis | B10: =(B7-0.6)*B9 -> 0.1368 | C10: W
A11: Chip Oper Cur | B11: 0.005 | C11: A
A12: Total Current | B12: =B7/B8+B11 -> 0.017 | C12: A
A14: LIN Master | B14: Value | C14: Units
A15: Nuber Resistors | B15: 2 | C15: count
A16: Resistance | B16: =B15*B8 -> 2000 | C16: ohm
A17: Current - short | B17: =B7/B16 -> 0.006 | C17: A
A18: Power | B18: =B7*B17 -> 0.072 | C18: W

Sheet Ribbon Con
A1: Pin | B1: X | C1: Y | D1: Units
A2: 1 | B2: =-2.5-1.25/2 -> -3.125 | C2: 1 | D2: mm
A3: 2 | B3: =(A3-A$2)*1.25+B$2 -> -1.875 | C3: =C2-2 -> -1 | D3: mm
A4: 3 | B4: =(A4-A$2)*1.25+B$2 -> -0.625 | C4: =C2 -> 1 | D4: mm
A5: 4 | B5: =(A5-A$2)*1.25+B$2 -> 0.625 | C5: =C3 -> -1 | D5: mm
A6: 5 | B6: =(A6-A$2)*1.25+B$2 -> 1.875 | C6: =C4 -> 1 | D6: mm
A7: 6 | B7: =(A7-A$2)*1.25+B$2 -> 3.125 | C7: =C5 -> -1 | D7: mm
A9: Housing Left | B9: =-13.25/2 -> -6.625
A10: Housing Right | B10: =-B9 -> 6.625
A11: Slot Left | B11: =-8.95/2 -> -4.475
A12: Slot Right | B12: =-B11 -> 4.475
A16: Pin | B16: X | C16: Y | D16: Units
A17: 1 | B17: -1.25 | C17: 1 | D17: mm
A18: 2 | B18: =(A18-A$17)*1.25+B$17 -> 0 | C18: =C17-2 -> -1 | D18: mm
A19: 3 | B19: =(A19-A$17)*1.25+B$17 -> 1.25 | C19: =C17 -> 1 | D19: mm
A22: Housing Left | B22: =-9.5/2 -> -4.75
A23: Housing Right | B23: =-B22 -> 4.75
A24: Slot Left | B24: =-5.2/2 -> -2.6
A25: Slot Right | B25: =-B24 -> 2.6
B27: 84.86 | C27: mm
B28: =B27/25.4 -> 3.340944882
B29: 21.79 | C29: mm
B30: =B29/25.4 -> 0.8578740157

Sheet Block Cost
A1: Functional Block | B1: Est. Cost | C1: Qty | E1: Notes
A2: Micro | B2: 4.5 | C2: 2000 | E2: micro, crystal, caps
A3: Config Storage | B3: 0.25 | C3: 2000 | E3: eerom
A4: Power Supply | B4: 4 | C4: 2000 | E4: switching
A5: Learn Mode | B5: 0.1 | C5: 2000 | E5: 2xR, 1xC
A6: Wakeup In | B6: 0.25 | C6: 2000
A7: Wakeup Out | B7: 1 | C7: 2000
A8: LIN Transceiver | B8: 1 | C8: 2000
A9: CAN Transceiver | B9: 1 | C9: 2000 | E9: xcvr, filter, diodes
A10: H-Driver | B10: 3.75 | C10: 2000
A11: LED Driver | B11: 0.1 | C11: 2000
A12: Keypad Sense | B12: 0.25 | C12: 2000
A13: Acoustic Signal | B13: 2.25 | C13: 2000 | E13: need to find -40 to +85 part
A14: Miscellaneous | B14: 3 | C14: 2000 | E14: whatever was forgotton above
A15: Estimated Total | B15: =SUM(B2:B14) -> 21.45
A19: Estimated costs includes the primary and supporting components
B24: LIN | C24: CAN | D24: JD Exclusive | E24: Description
B25: Yes | C25: No | D25: No | E25: smaller micro, no JD/OS
B26: No | C26: Yes | D26: Yes | E26: JD/OS, "fully integrated"
B27: No | C27: Yes | D27: No | E27: powerful micro, ~25-50,000 lines of code

Sheet Acoustic
A1: Acoustic Signal
A2: 4khz - http://www.soundsnap.com/search/audio/4khz/popular
A3: 2khz - http://www.soundsnap.com/search/audio/2khz/popular
A5: Manufacturer | B5: Freq | C5: Temp Range | D5: $ ea | E5: $ @500 | F5: Web
A7: CUI Inc (smd) | B7: 4 khz | C7: '-30 + 70 | D7: $4.81 qty 1 | E7: $2.49 qty 500 | F7: http://search.digikey.com/us/en/products/CMI-1240/102-1196-5-ND/504829
A8: CUI Inc (thru hole) | B8: 4 khz | C8: '-20 +70 | D8: $3.19 qty 1 | E8: $1.65 qty 500 | F8: http://search.digikey.com/us/en/products/CEP-2242/102-1115-ND/412374
A9: PUI Audio (thru hole) | B9: 4 khz | C9: '-20 +70 | D9: $3.66 qty 1 | E9: $2.20 qty 500 | F9: http://search.digikey.com/us/en/products/AI-1440-TWT-12V-R/668-1024-ND/1464763
A10: Mallory (thru hole) | B10: 4.1 khz | C10: '-20 + 90 | D10: $2.43 qty 1 | E10: $2.09 qty 500 | F10: http://search.digikey.com/us/en/products/PK-12N40PQ/458-1066-ND/969793
A11: Kobiton (thru hole) | B11: 4 khz | C11: '-20 + 105 | D11: $4.26 qty 1 | E11: $2.59 qty 500 | F11: http://www.mouser.com/ProductDetail/Kobitone/254-15210-ROX/?qs=05UEgX2TgG1gFl%2faATOCEw%3d%3d
A15: Acoustic Supply | B15: 12 | C15: v
A16: Acoustic Current | B16: 0.005 | C16: A
A17: Driver gain (min) | B17: 50
A18: Base Drive Current | B18: =B16/B17 -> 0.0001 | C18: A
A19: Base Drive Voltage | B19: 3.3 | C19: v
A20: Base Drive Resistance | B20: =B19/B18 -> 33000

Sheet Components
A1: Category | B1: ScratchNotes | C1: Additional Notes
A2: H-Bridge | B2: BTN7960/70/71 | C2: half-Bridge 40V 40A | D2: requires 2 part
A3: H-Bridge | B3: TLE6208-3 | C3: 3 half-bridge .8A 32v | D3: 0.8A not enough
A4: H-Bridge | B4: TLE8201R | C4: Full Door module - Mirror w/heat/light | D4: too many functions - cost
A5: H-Bridge | B5: TLE8203E | C5: Full Door module - Mirror w/heat/light | D5: not enough current
A6: H-Bridge | B6: TLE84106EL | C6: Hex half-bridge | D6: 18v, 0.8A
A7: H-Bridge | B7: TLE7181EM | C7: H-Bridge Driver: 34v, 10 uA quiescient, lots of features (may cost too much) | D7: Pre-Driver for mosfets
A8: H-Bridge | B8: BTM7740G | C8: 8A peak (25C), 5uA quiesc, 40V
A9: H-Bridge | B9: TLE5205 | C9: 4A 40V status
A10: H-Bridge | B10: TLE5206 | C10: 4A 40V status
B12: BTS50015 | C12: Single high-side 28V 33A, 18uA standby | D12: If we need a pre-enable
A14: System Basis Chip | B14: TLE8261E | C14: System Basis Chip, reg, CAN transceiver, watchdog | D14: very interesting combination of parts, but for a system that does not need them all, this is overkill and no alternate sourcing.
A15: System Basis Chip | B15: TLE8262E | C15: 1xLIN
A16: System Basis Chip | B16: TLE8263E | C16: 2xLIN
A17: System Basis Chip | B17: TLE8264E | C17: 3xLIN
A18: System Basis Chip | B18: TLE6266G | C18: CAN, Watchdog | D18: on special request only
A19: Window Lift Module | B19: TLE7810 | C19: Full Window Control on LIN w/8051
A22: Power Supply | B22: TLE6365G | C22: step down w/reset 8 to 40v | D22: no enable
A23: Power Supply | B23: TLE6711G | C23: boost/buck, watchdog, enable | D23: watchdog compatibility
A24: Power Supply | B24: TLE7368E | C24: 5.5v, reset, watchdog | D24: overkill - for high end multi-voltage
A25: Power Supply | B25: TLE4278G | C25: Reset, watchdog | D25: linear part, but with possibly adequate heat-sink
A26: Power Supply | B26: LTC3115-1 | C26: buck-boost, 2.7-40v, 5v1A out, enable, burst mode
A27: Power Supply | B27: LT3433 | C27: buck-boost, 4-60v, 5v .3A, enable
A28: Power Supply | B28: LT3689 | C28: step-down, por, wdt | D28: wdt compatibility?
A29: Power Supply | B29: LT3682 | C29: uPower step down,
A30: Power Supply | B30: LT3631 | C30: 4.5 to 45 to 5v@100mA | D30: nice, but 100mA max
A31: Power Supply | B31: LT3470A | C31: buck reg 12v to 5v@250mA | D31: 8-pin
A32: Power Supply | B32: LTM8021 | C32: 7.5-36v to 5v@500mA | D32: full uModule w most parts (LGA pkg)
A33: Power Supply | B33: LT3502 | C33: 7-40v to 5v@500mA
A34: Power Supply | B34: LT3970 | C34: 7-40 to 5v@350mA, enable, power good out | D34: 10-pin
A35: Power Supply | B35: LT1934ES6 | C35: 6.5-34v to 5v@250mA, enable | D35: 6-pin
A39: Capacitive Touch Sense | C39: Can share matrix with backlight LEDs
A42: Key | B42: Not yet analyzed | C42: part identified from initial scan/research
B43: Candidate Parts | C43: looks even better
B44: Candidate Parts | C44: seems to mee the requirements
B45: Defer rejection | C45: further analysis may be required
B46: Rejected | C46: not appropriate for this project (reason noted)
